Cogmind - Beta 14 @@@ ROGUE MODE // 2024.08.15 @ 11:08:09 Player: Jammed Result: Destroyed by G-67 Veteran with Plasma Rifle Performance ------------- Evolutions (6) 3000 Regions Visited (20) 4000 Robots Destroyed (444) 2220 Value Destroyed (17034) 17034 Prototype IDs (41) 820 Alien Tech Used (0) 0 Bonus (4877) 4877 TOTAL SCORE: 31951 Bonus ------- High Alert Combat Kills 1635 Follower Combat Kills 834 Network Hubs Disabled 400 Met Data Miner 300 Met Warlord at Base 500 MAIN.C Attacked Warlord 500 Warlord Defense Kills 1546 Met R17 at Cetus 500 Friendly Fire -1338 Cogmind --------- Core Integrity 0/1150 Matter 186/300 Energy 83/100 System Corruption 18% Temperature Critical (5595) Movement Core (50) Location -4/Factory Parts ------- > --- POWER (2) -------- (None) > --- PROPULSION (4) --- (None) > --- UTILITY (7) ------ (None) > --- WEAPON (6) ------- (None) > --- INVENTORY (5) ---- Transmission Jammer Combat Drone Bay (2/2) Cooled Particle Cannon KE Penetrator Peak State ------------ > --- POWER ------------ Antimatter Reactor Reinforced Antimatter Reactor > --- PROPULSION ------- Biometal Heavy Treads Biometal Heavy Treads > --- UTILITY ---------- Advanced Cryofiber Web Advanced Heat Sink Experimental Cooling System High-capacity Storage Unit Machine Analyzer 0b10 Decoder Chip [Generic] Improved Force Field > --- WEAPON ----------- Long-range Phase Cannon Long-range Phase Cannon Long-range Phase Cannon Long-range Phase Cannon Long-range Phase Cannon Long-range Phase Cannon > --- INVENTORY -------- Antimatter Reactor Light Antimatter Reactor Armored Medium Treads Armored Medium Treads Advanced Cooling System Matter Compressor Weapon Cycler Transmission Jammer System Mapper Improved System Shield Improved System Shield Improved Component Analysis Suite Long-range Tractor Beam Combat Drone Bay Cooled Particle Cannon Heavy Machine Gun KE Penetrator RU-N14's Throwing Claymores v3 [Rating: 145] Favorites ----------- Power Quantum Reactor Engine Cooled Ion Engine Power Core Fission Core Reactor Quantum Reactor Propulsion Light Treads Treads Light Treads Leg Flexi-carbon Leg Wheel Armored Huge Wheel Utility High-capacity Storage Unit Device Improved Heat Sink Storage High-capacity Storage Unit Processor Machine Analyzer Hackware Improved Hacking Suite Protection Hardened Light Armor Plating Weapon Autogun Energy Gun EM Pulse Gun Energy Cannon Long-range Phase Cannon Ballistic Gun Autogun Ballistic Cannon Antimatter Cannon Launcher Heavy Rocket Launcher Special Weapon RU-N14's Throwing Claymores v3 Impact Weapon Power Maul Build | -11 -10 -9 -9 -8 -7 -7 -7 -7 -6 -6 -6 -6 -6 -6 -5 -5 -5 -5 -4 -4 ------- Run | Yrd Mat Mat Min Mat Fac Low Low Dat Pro Fac Ext Cet Arc Hub Fac Upp Upp War Pro Fac Slots Evolved 12 | . . 2 . 2 2 . . . . 2 . . . . 2 . . . . 2 Power 1 | . . . . . . . . . . . . . . . . . . . . 1 Propulsion 2 | . . . . . 2 . . . . . . . . . . . . . . . Utility 5 | . . 1 . 1 . . . . . 1 . . . . 1 . . . . 1 Weapon 4 | . . 1 . 1 . . . . . 1 . . . . 1 . . . . . Parts Attached 328 | 1 21 26 2 42 37 12 . 4 7 12 14 12 3 18 48 8 2 27 6 26 Power 26 | . 2 5 . 3 3 . . . . 2 1 1 . . 1 1 . 3 . 4 Engine 10 | . 2 5 . 1 1 . . . . 1 . . . . . . . . . . Core 6 | . . . . 2 2 . . . . 1 1 . . . . . . . . . Reactor 10 | . . . . . . . . . . . . 1 . . 1 1 . 3 . 4 Propulsion 57 | . 3 4 . 7 8 3 . . 3 1 3 1 1 . 9 1 . 7 2 4 Treads 50 | . 1 4 . 7 8 3 . . 3 . 3 1 1 . 5 1 . 7 2 4 Leg 4 | . . . . . . . . . . . . . . . 4 . . . . . Wheel 3 | . 2 . . . . . . . . 1 . . . . . . . . . . Hover . | . . . . . . . . . . . . . . . . . . . . . Flight . | . . . . . . . . . . . . . . . . . . . . . Utility 124 | 1 2 7 2 12 16 4 . . . 8 8 3 2 8 23 3 1 13 3 8 Device 77 | 1 . 2 1 6 14 4 . . . 4 3 1 . 6 15 2 1 10 1 6 Storage 3 | . 1 . . . 1 . . . . 1 . . . . . . . . . . Processor 12 | . . . . . 1 . . . . . 2 1 . . 2 1 . 2 2 1 Hackware 1 | . . . . . . . . . . . . . 1 . . . . . . . Protection 31 | . 1 5 1 6 . . . . . 3 3 1 1 2 6 . . 1 . 1 Artifact . | . . . . . . . . . . . . . . . . . . . . . Weapon 121 | . 14 10 . 20 10 5 . 4 4 1 2 7 . 10 15 3 1 4 1 10 Energy Gun 11 | . 9 1 . . . . . . . . . . . . . . . . 1 . Energy Cannon 11 | . . . . . 1 . . . 1 . . . . . 1 . . 1 . 7 Ballistic Gun 84 | . 4 9 . 16 8 5 . 4 3 1 2 7 . 6 13 2 1 . . 3 Ballistic Cannon 1 | . . . . . . . . . . . . . . . . 1 . . . . Launcher 1 | . . . . . 1 . . . . . . . . . . . . . . . Special Weapon 4 | . 1 . . . . . . . . . . . . . . . . 3 . . Impact Weapon 9 | . . . . 4 . . . . . . . . . 4 1 . . . . . Slashing Weapon . | . . . . . . . . . . . . . . . . . . . . . Piercing Weapon . | . . . . . . . . . . . . . . . . . . . . . Special Melee Weapon . | . . . . . . . . . . . . . . . . . . . . . Unidentified Prototypes 14 | . . 2 . 1 1 . . . . . . 3 . . . . . 5 1 1 Corrupted Parts 3 | . 1 . . . . 2 . . . . . . . . . . . . . . System Corruption 8 | . 4 . . . . 4 . . . . . . . . . . . . . . Parts Lost 109 | . 6 2 . 10 10 8 1 . 4 . 2 6 . 3 19 4 1 3 8 22 Power 9 | . 1 . . 1 1 . . . . . . 1 . . 1 1 . . . 3 Propulsion 22 | . 2 . . 1 2 3 1 . 2 . . . . . 4 . . 1 4 2 Utility 30 | . . 2 . 2 3 2 . . . . 1 . . . 6 2 . 2 1 9 Weapon 48 | . 3 . . 6 4 3 . . 2 . 1 5 . 3 8 1 1 . 3 8 Highest Loss Streak 15 | . 3 1 . 3 4 4 1 . 3 . 1 4 . 2 9 4 1 2 4 15 To Critical Strikes 4 | . . . . 1 . 1 . . . . 1 . . . . 1 . . . . Average Slot Usage (%) 91 | . 95 96 100 98 95 96 88 57 88 93 92 86 86 85 89 91 93 95 68 67 Engine 4 | . 13 11 11 8 1 7 7 7 7 3 . . . . . . . . . . Reactor 1 | . . . . . . . . . . . . 1 6 6 4 4 5 5 5 9 Treads 17 | . . 21 22 17 29 29 26 23 27 16 13 7 10 13 8 21 23 23 14 10 Leg 1 | . 12 . . . . . . . . . . . . . 5 . . . . . Wheel 1 | . 15 . . . . . . . . 4 6 6 2 . . . . . . . Device 12 | . 1 7 11 19 19 19 15 15 15 21 14 6 6 6 15 11 11 11 12 14 Storage 7 | . 14 11 11 9 7 7 7 7 7 6 6 6 6 6 5 5 5 5 5 5 Processor 3 | . . . . . . . . . . . 4 12 13 13 5 9 11 10 8 10 Protection 6 | . 9 10 11 6 1 . . . . 2 5 6 6 5 4 5 5 5 5 2 Energy Gun 1 | . 21 . . . . . . . . . . . . . . . . . 3 3 Ballistic Gun 28 | . 5 32 33 35 27 30 30 4 28 33 33 32 33 32 33 28 28 29 9 . Peak Build Rating 145 | 7 10 20 20 27 38 37 37 36 41 52 55 78 88 98 109 90 80 91 109 145 Average Rating 50 | 6 8 17 19 23 30 33 36 29 37 48 51 65 83 90 95 80 78 82 94 125 On Entrance 50 | 6 7 10 20 18 25 34 37 36 36 39 52 50 78 88 91 84 80 78 88 98 Naked Turns 4 | . . . . . . . . . . . . . . . . . . . . 4 Heaviest Build 162 | 13 54 63 63 86 72 72 68 68 72 77 77 83 83 88 99 100 91 100 108 162 Greatest Support 160 | 20 26 40 40 40 80 98 98 78 88 88 28 80 160 160 160 98 98 103 109 150 Greatest Overweight (x) 32 | . 5 5 1 4 1 1 . . 1 2 2 2 2 . 32 1 . 1 1 1 Average Overweight (x) . | . 1 1 1 1 . . . . . 1 2 1 . . 1 . . . . . Largest Inventory Capacity 20 | 8 20 20 20 20 20 20 20 20 20 20 20 20 20 20 20 20 20 20 20 20 Average Capacity 19 | 8 17 20 20 20 20 20 20 20 20 20 20 20 20 20 20 20 20 20 20 19 Most Carried 20 | 7 17 20 20 20 20 20 20 20 20 20 20 20 20 20 20 19 20 20 19 20 Average Carried 18 | 6 10 19 19 19 17 18 19 19 18 19 19 18 19 19 17 17 18 19 15 16 Final Capacity 20 | 8 20 20 20 20 20 20 20 20 20 20 20 20 20 20 20 20 20 20 20 5 Final Carried 20 | 7 17 20 20 20 20 17 20 19 18 20 20 20 20 19 19 17 20 19 15 5 Class Distribution -------------------- 37% | Scavenger-Tank 22% | Scavenger-Executioner 12% | Scavenger-Skirmisher 9% | Scavenger-Gunner 7% | Tank 6% | Mutant Dominant Class ---------------- Mutant | -10/Materials Scavenger-Tank | -9/Materials Scavenger-Tank | -9/Mines Scavenger-Tank | -8/Materials Scavenger-Gunner | -7/Factory Scavenger-Gunner | -7/Lower Caves Scavenger-Tank | -7/Lower Caves Mutant | -7/Data Miner Scavenger-Tank | -6/Proximity Caves Scavenger-Tank | -6/Factory Scavenger-Skirmisher | -6/Extension Scavenger-Gunner | -6/Cetus Scavenger-Gunner | -6/Archives Scavenger-Skirmisher | -6/Hub_04(d) Scavenger-Executioner | -5/Factory Scavenger-Executioner | -5/Upper Caves Scavenger-Executioner | -5/Upper Caves Scavenger-Executioner | -5/Warlord Scavenger-Executioner | -4/Proximity Caves Executioner | -4/Factory Resources | -11 -10 -9 -9 -8 -7 -7 -7 -7 -6 -6 -6 -6 -6 -6 -5 -5 -5 -5 -4 -4 ----------- Run | Yrd Mat Mat Min Mat Fac Low Low Dat Pro Fac Ext Cet Arc Hub Fac Upp Upp War Pro Fac Matter Collected 15848 | 261 271 1134 210 1516 1374 560 192 . 309 1182 1475 546 553 1135 2938 631 186 707 346 322 Remotely 525 | . . . . . . . . . . . . . . . 525 . . . . . Salvage Created 21584 | 220 958 2163 104 1738 1321 442 217 . 260 1060 1299 488 487 1627 3869 703 133 824 899 2772 Parts 1116 | 11 44 118 12 92 84 24 12 . 16 48 67 20 26 99 183 44 10 36 36 134 Haulers Intercepted 17 | . 2 5 . . 4 . . . . . . . . 2 3 . . . . 1 Recyclers Shooed 11 | . 1 1 . 1 1 . . . . 3 3 . . 1 . . . . . . Parts Field Recycled . | . . . . . . . . . . . . . . . . . . . . . Retrieved Matter . | . . . . . . . . . . . . . . . . . . . . . Parts Self-Destructed 97 | . . . . . . 15 9 . 13 . . . . . . 24 4 . 32 . Prevented 2 | . . . . . . 1 . . . . . . . . . . . . 1 . Kills | -11 -10 -9 -9 -8 -7 -7 -7 -7 -6 -6 -6 -6 -6 -6 -5 -5 -5 -5 -4 -4 ------- Run | Yrd Mat Mat Min Mat Fac Low Low Dat Pro Fac Ext Cet Arc Hub Fac Upp Upp War Pro Fac Combat Hostiles Destroyed 316 | . 13 36 6 35 21 10 6 . 8 6 23 4 4 21 55 6 1 13 17 31 Guns 269 | . 12 36 6 34 21 10 6 . 4 6 23 4 4 21 55 5 1 12 7 2 Cannons 17 | . . . . . . . . . 4 . . . . . . 1 . . . 12 AOE 24 | . 1 . . 1 . . . . . . . . . . . . . . 8 14 Classes Destroyed 27 | 2 6 3 2 4 1 3 . . . . . . . . 1 1 . 4 . . Worker 22 | . 2 4 . 2 1 . . . . . . . . 3 5 . . . . 5 Builder 17 | . . 1 . . 1 . . . . . 1 . . 2 2 . . . . 10 Tunneler 13 | 7 . 1 2 1 1 . . . . . 1 . . . . . . . . . Hauler 17 | . 2 5 . . 4 . . . . . . . . 2 3 . . . . 1 Recycler 13 | 1 1 1 . . 1 . . . . 5 . . . 1 1 . . . . 2 Mechanic 7 | . 1 1 . 2 2 . . . . . . . . . 1 . . . . . Operator 9 | . 1 1 . . . . . . . . 1 . 5 1 . . . . . . Watcher 26 | . 3 5 . 4 . . . . . 3 3 1 . 5 1 . . . . 1 Swarmer 70 | . . 3 3 7 8 7 6 . 6 . 6 . . 4 10 . . 1 9 . Saboteur 3 | . . . . . . . . . . . . . . . . . . 3 . . Grunt 120 | . 13 24 . 14 8 1 . . . 2 10 . . 5 20 4 . 1 7 11 Brawler 7 | . . . . 1 . . . . . . . . . . 4 . . 2 . . Duelist 3 | . . . . 1 . . . . . . . . . . 1 . . 1 . . Protector 1 | . . . . . . . . . . . . . . . . . . 1 . . Sentry 46 | . . 9 . 9 1 1 . . 1 1 6 . 4 7 3 1 1 . . 2 Demolisher 1 | . . . 1 . . . . . . . . . . . . . . . . . Specialist 2 | . . . . . . . . . . . . . . . 2 . . . . . Hunter 12 | . . . . 2 . . . . . . . . . . 3 . . 1 . 6 Programmer 34 | . . . . . 3 . . . 1 3 . . . 4 11 . . . . 12 Heavy 4 | . . . . 1 1 . . . . . . . . 1 1 . . . . . Behemoth 3 | . . . . . . 1 . . . . . . . . . 1 . . 1 . Cetus Guard 4 | . . . . . . . . . . . . 4 . . . . . . . . Striker 2 | . . . . . . . . . . . . . . . . . . 2 . . Executioner 1 | . . . . . . . . . . . . . . . . . . 1 . . Samaritan 5 | . . . . . . . . . . . . . . . . 4 1 . . . Tinkerer 2 | . . . . . . 1 . . . . . . . . . . . 1 . . Assembled 2 | . . . 2 . . . . . . . . . . . . . . . . . Thug 1 | . . . . . . . . . . . 1 . . . . . . . . . Savage 2 | . . . . . . . . . . . . 2 . . . . . . . . Guerrilla 1 | . . . . . . . . . . . . 1 . . . . . . . . Mutant 3 | . . . . . . 1 1 . . . . . . . . 1 . . . . Best Kill Streak 14 | 4 4 6 2 10 4 2 4 . 4 3 5 3 4 5 11 4 1 6 5 14 Combat Bots Only 9 | . 3 6 2 5 4 2 4 . 4 3 5 3 2 4 9 4 1 6 5 6 Max Kills in Single Turn 5 | 1 2 2 1 2 2 1 2 . 2 1 1 2 1 2 3 1 1 3 5 5 Gunslinging 1 | . . 1 . 1 . . 1 . . . . . . . 1 . . . 1 . Exploded 4 | . 1 . . 1 . . . . . . . . . . . . . . 4 3 Melee . | . . . . . . . . . . . . . . . . . . . . . Uniques/NPCs Destroyed . | . . . . . . . . . . . . . . . . . . . . . Combat | -11 -10 -9 -9 -8 -7 -7 -7 -7 -6 -6 -6 -6 -6 -6 -5 -5 -5 -5 -4 -4 -------- Run | Yrd Mat Mat Min Mat Fac Low Low Dat Pro Fac Ext Cet Arc Hub Fac Upp Upp War Pro Fac Hostile Shots Fired 1849 | . 80 119 36 196 126 93 31 . 50 38 103 54 10 67 280 51 10 39 157 309 Missed 463 | . 21 35 8 51 30 26 2 . 19 10 37 18 3 11 64 12 1 10 38 67 Damage Taken 23720 | . 790 1162 424 1922 1737 796 410 . 381 493 967 939 158 855 4245 738 152 517 1974 5060 Core 2919 | . 101 68 40 145 212 84 34 . 19 76 90 97 26 54 366 81 . 102 165 1159 Absorbed by Shields 2162 | . . . . 658 96 184 20 . 40 20 . . . . . 194 56 184 320 390 Reduced by Siege Mode 510 | . . . . . . . . . . . . 56 6 54 107 . . . . 287 Redirected to Shielding 163 | . . . . . . . . . . 60 . . . . . . . . . 103 Ignored by Resistances 162 | . . . . 162 . . . . . . . . . . . . . . . . Regen/Repaired (Parts) 1025 | . . 184 . 150 . . . . . 107 80 . . . 116 . . 388 . . Core Remaining (%) 63 | 100 59 . 73 73 . . . . 50 . . . . 59 . . . . 28 . Volleys Fired 897 | 17 80 98 20 93 77 31 12 . 21 35 66 22 25 48 104 24 5 34 23 62 Largest 6 | 2 2 3 3 4 4 4 4 . 4 5 5 5 5 5 6 6 5 5 5 6 Hottest 630 | 70 100 69 69 92 97 97 92 . 92 115 115 115 115 140 190 197 150 150 328 630 Shots Fired 3520 | 34 145 294 60 361 280 127 51 . 46 175 329 110 125 240 586 118 24 137 68 210 Gun 3319 | 34 144 294 60 361 279 127 51 . 33 175 329 110 125 240 583 113 24 129 68 40 Cannon 199 | . . . . . . . . . 13 . . . . . 3 5 . 8 . 170 Launcher 1 | . . . . . 1 . . . . . . . . . . . . . . . Special 1 | . 1 . . . . . . . . . . . . . . . . . . . Kinetic 3173 | 17 41 294 60 361 279 127 51 . 33 175 329 110 125 240 583 118 24 129 58 19 Thermal 274 | 17 32 . . . . . . . 13 . . . . . 3 . . 8 10 191 Explosive 1 | . . . . . 1 . . . . . . . . . . . . . . . Electromagnetic 72 | . 72 . . . . . . . . . . . . . . . . . . . Robot Hit Streak 43 | 5 11 22 9 20 17 14 7 . 4 15 16 31 24 31 43 13 10 10 11 17 Robot Miss Streak 18 | 3 4 5 2 5 5 7 3 . 2 3 4 4 2 3 8 3 1 6 4 18 Penetration Max 1 | . . . . . 1 . . . . . . . . 1 1 . . 1 1 . Secondary Targets 35 | . . 2 1 8 1 1 3 . . 2 2 2 . 1 8 1 . . 3 . Max Gunslinging Chain 2 | . . 1 1 2 1 1 1 . . 1 1 1 . 1 1 1 . . 1 . Shots Hit Robots 2201 | 19 95 190 31 242 166 79 27 . 25 112 205 81 88 165 381 73 17 75 38 92 Core Hits 988 | 9 40 87 14 90 56 26 15 . 12 40 86 31 39 79 155 29 6 31 38 105 Critical Kills 16 | . . . . 2 1 . . . . . . . . . 9 2 . 2 . . Critical Parts Destroyed 15 | . . 1 . . . . . . . . 1 1 . 1 6 2 . 3 . . Critical Strikes 37 | . 3 1 . 2 1 . . . . . 2 1 . 1 15 4 . 7 . . Burn 2 | . 2 . . . . . . . . . . . . . . . . . . . Destroy 34 | . . 1 . 2 1 . . . . . 2 1 . 1 15 4 . 7 . . Corrupt 1 | . 1 . . . . . . . . . . . . . . . . . . . Melee Attacks 21 | . . . . 11 . . . . . . . . . 7 3 . . . . . Impact 21 | . . . . 11 . . . . . . . . . 7 3 . . . . . Slashing . | . . . . . . . . . . . . . . . . . . . . . Piercing . | . . . . . . . . . . . . . . . . . . . . . Sneak Attacks . | . . . . . . . . . . . . . . . . . . . . . Combat Hostiles . | . . . . . . . . . . . . . . . . . . . . . Follow-up Attacks . | . . . . . . . . . . . . . . . . . . . . . Damage Inflicted 46919 | 257 1390 2955 501 4095 3056 1306 410 . 622 1810 3619 1322 1308 2847 8678 1796 351 1739 1768 7089 Guns 38513 | 257 1281 2951 501 3655 3039 1306 410 . 327 1810 3619 1322 1308 2847 8678 1689 351 1739 727 696 Cannons 3119 | . . . . . . . . . 295 . . . . . . 107 . . . 2717 Explosions 5266 | . 109 . . 440 . . . . . . . . . . . . . . 1041 3676 Melee . | . . . . . . . . . . . . . . . . . . . . . Ramming 21 | . . 4 . . 17 . . . . . . . . . . . . . . . Kinetic 37298 | 134 348 2951 501 3655 3039 1306 410 . 327 1810 3619 1322 1308 2847 8678 1796 351 1739 656 501 Thermal 8905 | 123 347 . . 440 . . . . 295 . . . . . . . . . 1112 6588 Explosive . | . . . . . . . . . . . . . . . . . . . . . Electromagnetic 695 | . 695 . . . . . . . . . . . . . . . . . . . Impact . | . . . . . . . . . . . . . . . . . . . . . Slashing . | . . . . . . . . . . . . . . . . . . . . . Piercing . | . . . . . . . . . . . . . . . . . . . . . Highest Corruption 35 | . 5 . . 3 6 10 10 10 11 1 1 1 1 1 35 35 35 35 1 18 Average Corruption 9 | . 1 . . 3 4 6 10 10 10 1 1 1 1 1 21 35 35 5 1 6 Corruption Purged 1 | . . . . . . . . . . . . . . 1 . . . . . . Corruption Blocked . | . . . . . . . . . . . . . . . . . . . . . Effects 423 | . 7 . . 20 26 40 18 3 25 . 10 2 6 3 135 56 24 9 4 35 Message Errors 95 | . 1 . . 2 3 14 3 2 5 . 2 1 . 2 31 10 7 2 . 10 Matter Fused 103 | . 2 . . 9 6 6 2 . 7 . 4 1 3 . 32 16 6 3 2 4 Heat Flow Errors 45 | . . . . 2 3 6 2 . 2 . 1 . 1 . 13 8 3 1 1 2 Energy Discharges 39 | . 1 . . 1 4 4 2 . 3 . . . 1 1 14 1 2 . . 5 Parts Rejected 1 | . . . . . . . . . . . . . . . . . . . . 1 Parts Fused 6 | . 1 . . 1 . 1 . . . . . . . . . 2 1 . . . Data Loss (minor) 48 | . 1 . . 4 7 3 3 1 3 . 2 . . . 13 7 1 1 . 2 Data Loss (major) 16 | . . . . . 1 3 1 . 1 . . . 1 . 4 1 2 1 . 1 Misfires 21 | . . . . . 1 2 4 . 2 . . . . . 8 1 1 . . 2 Alerts 8 | . . . . 1 1 1 . . 1 . . . . . 2 2 . . . . Misdirections 1 | . . . . . . . . . . . . . . . 1 . . . . . Weapon Failures 40 | . 1 . . . . . 1 . 1 . 1 . . . 17 8 1 1 1 8 Overload Shots 12 | . . . . . . . . . 4 . . . . . 2 . . 4 . 2 Overflow Damage 281 | . 1 . . 49 . . . . 47 . . . . . . . . . 1 183 Projectiles 141 | . . . . . . . . . 47 . . . . . . . . . . 94 Explosions 140 | . 1 . . 49 . . . . . . . . . . . . . . 1 89 Melee . | . . . . . . . . . . . . . . . . . . . . . Knockbacks 2 | . . . . . 1 . . . . . . . . . . 1 . . . . Impact 1 | . . . . . 1 . . . . . . . . . . . . . . . Kinetic 1 | . . . . . . . . . . . . . . . . 1 . . . . Secondary . | . . . . . . . . . . . . . . . . . . . . . Self-Inflicted Damage 856 | . 52 . . 165 27 . . . . . . . . . . . . . 87 525 Shots 31 | . 2 . . 2 1 . . . . . . . . . . . . . 4 22 Rammed 4 | . . 2 . . 2 . . . . . . . . . . . . . . . Targets Rammed 4 | . . 2 . . 2 . . . . . . . . . . . . . . . Kicked . | . . . . . . . . . . . . . . . . . . . . . Crushed . | . . . . . . . . . . . . . . . . . . . . . Highest Temperature 5814 | 99 303 148 18 301 132 246 241 . 141 40 213 85 96 290 326 285 189 333 315 5814 Average Temperature 180 | 38 73 41 9 62 41 103 131 . 58 8 43 32 26 80 66 102 76 137 93 1559 Received Heat Transfer 4079 | . 444 492 48 610 190 76 . . 12 115 279 36 9 123 835 156 24 50 340 240 Effects 41 | . 1 . . . . 3 . . . . . . . . 1 . . . . 36 Shutdowns 1 | . . . . . . . . . . . . . . . . . . . . 1 Energy Bleed 6 | . 1 . . . . . . . . . . . . . 1 . . . . 4 Interference 9 | . . . . . . 3 . . . . . . . . . . . . . 6 Matter Decay 3 | . . . . . . . . . . . . . . . . . . . . 3 Short Circuit 4 | . . . . . . . . . . . . . . . . . . . . 4 Damage (minor) 3 | . . . . . . . . . . . . . . . . . . . . 3 Damage (major) 13 | . . . . . . . . . . . . . . . . . . . . 13 Damage (core) 2 | . . . . . . . . . . . . . . . . . . . . 2 Siege Activations 49 | . . . . . . . . . . . . 1 5 23 15 . . . . 5 Total Turns 863 | . . . . . . . . . . . . 32 79 267 323 . . . . 162 Longest Duration 129 | . . . . . . . . . . . . 32 29 38 129 . . . . 68 Robots Corrupted . | . . . . . . . . . . . . . . . . . . . . . Combat Hostiles . | . . . . . . . . . . . . . . . . . . . . . Parts Fried 5 | . 4 . . . . . . . . . . . . . . . . 1 . . Impact Corruptions . | . . . . . . . . . . . . . . . . . . . . . Robots Melted 5 | . . . . . . . . . . . . . . . . . . . 2 3 Combat Hostiles 5 | . . . . . . . . . . . . . . . . . . . 2 3 Parts Melted 51 | 1 3 . . 1 . . . . 1 . 1 . 1 . . . . 8 8 27 Heat Transferred 11571 | 370 951 . . 250 . . . . 322 . . . . . . . . . 1692 7986 Parts Sabotaged 1 | . . . . . . . . . . . . . . . 1 . . . . . Parts Stolen . | . . . . . . . . . . . . . . . . . . . . . Parts Stripped . | . . . . . . . . . . . . . . . . . . . . . Power Chain Reactions 3 | . 3 . . . . . . . . . . . . . . . . . . . Alert | -11 -10 -9 -9 -8 -7 -7 -7 -7 -6 -6 -6 -6 -6 -6 -5 -5 -5 -5 -4 -4 ------- Run | Yrd Mat Mat Min Mat Fac Low Low Dat Pro Fac Ext Cet Arc Hub Fac Upp Upp War Pro Fac Peak Influence 1353 | 40 262 400 222 712 348 . . . . 106 624 423 280 657 1353 . . . . 845 Initial 317 | . 26 110 145 22 308 . . . . . . 313 169 28 317 . . . . . Average 279 | 23 105 222 69 325 191 . . . . 37 191 375 204 244 784 . . . . 287 Maximum Alert Level 4 | . 1 2 1 3 1 . . . . . 2 2 1 2 4 . . . . 3 Low Security (%) 49 | 100 83 47 88 36 42 . . . . 100 60 . 33 64 . . . . . 43 Level 1 29 | . 16 51 11 18 57 . . . . . 25 62 66 4 20 . . . . 33 Level 2 12 | . . . . 38 . . . . . . 13 37 . 30 20 . . . . 16 Level 3 6 | . . . . 6 . . . . . . . . . . 41 . . . . 6 Level 4 2 | . . . . . . . . . . . . . . . 17 . . . . . Level 5 . | . . . . . . . . . . . . . . . . . . . . . High Security . | . . . . . . . . . . . . . . . . . . . . . Max Security . | . . . . . . . . . . . . . . . . . . . . . Squads Dispatched 63 | . 4 5 . 8 4 . . . . 6 2 . . 11 15 . . . . 8 Investigation 18 | . 4 3 . 1 . . . . . 3 . . . 3 3 . . . . 1 Extermination 18 | . . . . . 3 . . . . 3 . . . 3 5 . . . . 4 Reinforcement 15 | . . 2 . 3 1 . . . . . 2 . . 2 4 . . . . 1 Assault 7 | . . . . 1 . . . . . . . . . 1 3 . . . . 2 Garrison 5 | . . . . 3 . . . . . . . . . 2 . . . . . . Intercept . | . . . . . . . . . . . . . . . . . . . . . Searches Triggered . | . . . . . . . . . . . . . . . . . . . . . Construction Impeded 3 | . . . . 1 . . . . . . 1 . . . . . . . . 1 Haulers Reinforced 2 | . . . . . . . . . . . . . . . 2 . . . . . Active Scanning Responses . | . . . . . . . . . . . . . . . . . . . . . Cargo Convoy Interrupts . | . . . . . . . . . . . . . . . . . . . . . Stealth | -11 -10 -9 -9 -8 -7 -7 -7 -7 -6 -6 -6 -6 -6 -6 -5 -5 -5 -5 -4 -4 --------- Run | Yrd Mat Mat Min Mat Fac Low Low Dat Pro Fac Ext Cet Arc Hub Fac Upp Upp War Pro Fac Distress Signals 18 | . 2 3 . 3 1 . . . . . 2 2 . 1 . . . 1 . 3 Communications Jammed 9 | . . . . . 2 . . . . . . . . . 7 . . . . . Distress Signals 5 | . . . . . 2 . . . . . . . . . 3 . . . . . Times Spotted 476 | . 24 51 16 52 27 15 7 . 8 11 36 11 15 32 69 7 1 34 18 42 Peak Tracking Total 10 | . 3 4 5 6 4 3 4 . 4 4 4 5 1 5 6 5 1 10 5 9 Tactical Retreats 29 | . 1 2 2 3 3 3 1 . . . 1 . . 3 4 1 . 3 2 . Traps | -11 -10 -9 -9 -8 -7 -7 -7 -7 -6 -6 -6 -6 -6 -6 -5 -5 -5 -5 -4 -4 ------- Run | Yrd Mat Mat Min Mat Fac Low Low Dat Pro Fac Ext Cet Arc Hub Fac Upp Upp War Pro Fac Traps Triggered 19 | . 1 2 . 1 4 . . . . 1 6 . . . 4 . . . . . Indirectly . | . . . . . . . . . . . . . . . . . . . . . Trap Hack Attempts . | . . . . . . . . . . . . . . . . . . . . . Triggered . | . . . . . . . . . . . . . . . . . . . . . Disarmed . | . . . . . . . . . . . . . . . . . . . . . Reprogrammed . | . . . . . . . . . . . . . . . . . . . . . Reused . | . . . . . . . . . . . . . . . . . . . . . Traps Extracted . | . . . . . . . . . . . . . . . . . . . . . Installed . | . . . . . . . . . . . . . . . . . . . . . Triggered 29 | . 4 . . . . 3 . . . . . . . . . . . 20 2 . Machines | -11 -10 -9 -9 -8 -7 -7 -7 -7 -6 -6 -6 -6 -6 -6 -5 -5 -5 -5 -4 -4 ---------- Run | Yrd Mat Mat Min Mat Fac Low Low Dat Pro Fac Ext Cet Arc Hub Fac Upp Upp War Pro Fac Machines Disabled 33 | . 4 2 . 3 . . . . . . . . 1 1 10 . . . . 12 Max in Single Turn 4 | . 2 1 . 3 . . . . . . . . 1 1 2 . . . . 4 Garrison Access 2 | . . . . . . . . . . . . . . 1 1 . . . . . Network Hub 2 | . . . . . . . . . . . . . . 2 . . . . . . Machines Repaired . | . . . . . . . . . . . . . . . . . . . . . Machines Dismantled . | . . . . . . . . . . . . . . . . . . . . . Machines Sabotaged 1 | . . . . . . . . . . . . . . 1 . . . . . . Overloaded Fab Kills . | . . . . . . . . . . . . . . . . . . . . . Hacking | -11 -10 -9 -9 -8 -7 -7 -7 -7 -6 -6 -6 -6 -6 -6 -5 -5 -5 -5 -4 -4 --------- Run | Yrd Mat Mat Min Mat Fac Low Low Dat Pro Fac Ext Cet Arc Hub Fac Upp Upp War Pro Fac Machines Accessed 68 | . 7 13 . 6 5 . . 4 . 5 6 1 1 8 7 . . 3 . 2 Terminals 34 | . 5 7 . 3 3 . . . . 2 4 1 . 7 2 . . . . . Fabricators 5 | . . . . . 1 . . . . 1 . . . . 1 . . . . 2 Repair Stations 8 | . . 2 . 2 . . . . . 1 1 . . . 2 . . . . . Recycling Units 6 | . 2 2 . . . . . . . 1 1 . . . . . . . . . Scanalyzers 3 | . . 2 . 1 . . . . . . . . . . . . . . . . Garrison Access 4 | . . . . . 1 . . . . . . . . 1 2 . . . . . Total Hacks 225 | . 18 40 . 20 9 . . 29 . 9 15 6 25 21 19 . . 10 . 4 Successful 144 | . 8 24 . 13 5 . . 29 . 3 8 1 25 9 6 . . 10 . 3 Failed 80 | . 9 16 . 7 4 . . . . 6 7 5 . 12 13 . . . . 1 Catastrophic 14 | . 1 4 . . . . . . . 2 1 1 . 2 3 . . . . . Database Lockouts 1 | . 1 . . . . . . . . . . . . . . . . . . . Manual 83 | . 16 20 . 9 3 . . . . 4 7 . . 17 6 . . 1 . . Terminals 100 | . 13 24 . 12 6 . . . . 5 9 6 . 18 7 . . . . . Fabricators 10 | . . . . . 2 . . . . 2 . . . . 2 . . . . 4 Repair Stations 20 | . . 5 . 4 . . . . . 1 4 . . . 6 . . . . . Recycling Units 11 | . 5 3 . . . . . . . 1 2 . . . . . . . . . Scanalyzers 12 | . . 8 . 4 . . . . . . . . . . . . . . . . Garrison Access 8 | . . . . . 1 . . . . . . . . 3 4 . . . . . Terminal Hacks 89 | . 2 7 . 4 2 . . 29 . . 4 1 25 4 1 . . 10 . . Record 36 | . . . . . . . . 11 . . . . 25 . . . . . . . Part Schematic 11 | . . . . . . . . 10 . . 1 . . . . . . . . . Robot Schematic 5 | . . . . . . . . 5 . . . . . . . . . . . . Robot Analysis 4 | . 2 . . 2 . . . . . . . . . . . . . . . . Prototype ID Bank 12 | . . . . . . . . 3 . . . . . . . . . 9 . . Open Door 2 | . . . . . . . . . . . . 1 . . . . . 1 . . Alert Level 9 | . . 4 . 1 1 . . . . . 2 . . 1 . . . . . . Unreport Threat 4 | . . 2 . . 1 . . . . . . . . 1 . . . . . . Locate Traps 1 | . . 1 . . . . . . . . . . . . . . . . . . Zone Layout 5 | . . . . 1 . . . . . . 1 . . 2 1 . . . . . Fabricator Hacks 7 | . . . . . 1 . . . . 2 . . . . 1 . . . . 3 Network Status 3 | . . . . . 1 . . . . . . . . . 1 . . . . 1 Load Schematic 2 | . . . . . . . . . . 1 . . . . . . . . . 1 Build 2 | . . . . . . . . . . 1 . . . . . . . . . 1 Repair Station Hacks 11 | . . 4 . 4 . . . . . . 2 . . . 1 . . . . . Scan Component 6 | . . 2 . 2 . . . . . . 1 . . . 1 . . . . . Repair 5 | . . 2 . 2 . . . . . . 1 . . . . . . . . . Recycling Unit Hacks 4 | . 2 2 . . . . . . . . . . . . . . . . . . Report Inventory 4 | . 2 2 . . . . . . . . . . . . . . . . . . Scanalyzer 8 | . . 6 . 2 . . . . . . . . . . . . . . . . Insert Component 4 | . . 3 . 1 . . . . . . . . . . . . . . . . Analyze 4 | . . 3 . 1 . . . . . . . . . . . . . . . . Garrison Access Hacks 2 | . . . . . 1 . . . . . . . . . 1 . . . . . Unlock Access 1 | . . . . . 1 . . . . . . . . . . . . . . . Seal Access 1 | . . . . . . . . . . . . . . . 1 . . . . . Unauthorized Hacks 23 | . 4 5 . 3 1 . . . . 1 2 . . 5 2 . . . . . Terminals 17 | . 2 4 . 3 1 . . . . . 2 . . 4 1 . . . . . Botnet 14 | . 2 4 . 2 1 . . . . . 2 . . 2 1 . . . . . Operators 1 | . . . . 1 . . . . . . . . . . . . . . . . Sabotage 2 | . . . . . . . . . . . . . . 2 . . . . . . Fabricators . | . . . . . . . . . . . . . . . . . . . . . Repair Stations 2 | . . . . . . . . . . 1 . . . . 1 . . . . . Patch 2 | . . . . . . . . . . 1 . . . . 1 . . . . . Recycling Units 3 | . 2 1 . . . . . . . . . . . . . . . . . . Tunnel 3 | . 2 1 . . . . . . . . . . . . . . . . . . Scanalyzers . | . . . . . . . . . . . . . . . . . . . . . Garrison Access 1 | . . . . . . . . . . . . . . 1 . . . . . . Jam 1 | . . . . . . . . . . . . . . 1 . . . . . . Data Cores Recovered 2 | . 1 . . . . . . . . . 1 . . . . . . . . . Used . | . . . . . . . . . . . . . . . . . . . . . Hacking Detections 50 | . 5 12 . 6 5 . . . . 4 4 1 . 6 5 . . . . 2 Full Trace Events 8 | . 1 3 . . . . . . . 2 . . . . 1 . . . . 1 Feedback Events 1 | . 1 . . . . . . . . . . . . . . . . . . . Corruption 1 | . 1 . . . . . . . . . . . . . . . . . . . Feedback Blocked . | . . . . . . . . . . . . . . . . . . . . . Robot Schematics Acquired 5 | . . . . . . . . 5 . . . . . . . . . . . . Robots Built . | . . . . . . . . . . . . . . . . . . . . . Authchips . | . . . . . . . . . . . . . . . . . . . . . Time . | . . . . . . . . . . . . . . . . . . . . . Total Robot Build Rating . | . . . . . . . . . . . . . . . . . . . . . Part Schematics Acquired 15 | . . 3 . 1 . . . 10 . . 1 . . . . . . . . . Parts Built 3 | . . . . . . . . . . 2 . . . . . . . . . 1 Authchips . | . . . . . . . . . . . . . . . . . . . . . Time 200 | . . . . . . . . . . 31 . . . . . . . . . 169 Total Part Build Rating 10 | . . . . . . . . . . 4 . . . . . . . . . 6 Parts Repaired 5 | . . 2 . 2 . . . . . . 1 . . . . . . . . . Time 207 | . . 64 . 93 . . . . . . 50 . . . . . . . . . Parts Recycled . | . . . . . . . . . . . . . . . . . . . . . Recycled Matter . | . . . . . . . . . . . . . . . . . . . . . Retrieved Matter . | . . . . . . . . . . . . . . . . . . . . . Retrieved Components . | . . . . . . . . . . . . . . . . . . . . . Parts Scanalyzed 4 | . . 3 . 1 . . . . . . . . . . . . . . . . Part Schematics Acquired 4 | . . 3 . 1 . . . . . . . . . . . . . . . . Parts Damaged 1 | . . . . 1 . . . . . . . . . . . . . . . . Bothacking | -11 -10 -9 -9 -8 -7 -7 -7 -7 -6 -6 -6 -6 -6 -6 -5 -5 -5 -5 -4 -4 ------------ Run | Yrd Mat Mat Min Mat Fac Low Low Dat Pro Fac Ext Cet Arc Hub Fac Upp Upp War Pro Fac Used RIF Installer . | . . . . . . . . . . . . . . . . . . . . . Robots Hacked . | . . . . . . . . . . . . . . . . . . . . . Non-combat . | . . . . . . . . . . . . . . . . . . . . . Combat . | . . . . . . . . . . . . . . . . . . . . . Robot Hacks Applied . | . . . . . . . . . . . . . . . . . . . . . Relay Couplers Released 3 | . . . . . 3 . . . . . . . . . . . . . . . Programmers 3 | . . . . . 3 . . . . . . . . . . . . . . . Fabnet Peak Effective % . | . . . . . . . . . . . . . . . . . . . . . Robots Rewired 9 | . . . . . . . . . . . 9 . . . . . . . . . Allies Hacked . | . . . . . . . . . . . . . . . . . . . . . Hacks Repelled . | . . . . . . . . . . . . . . . . . . . . . Allies | -11 -10 -9 -9 -8 -7 -7 -7 -7 -6 -6 -6 -6 -6 -6 -5 -5 -5 -5 -4 -4 -------- Run | Yrd Mat Mat Min Mat Fac Low Low Dat Pro Fac Ext Cet Arc Hub Fac Upp Upp War Pro Fac Total Allies 21 | . . . 3 . . . . . . . 18 . . . . . . . . . Largest Group 14 | . . . 2 . . . . . . . 14 8 2 . . . . . . . Highest-Rated Group 505 | . . . 45 . . . . . . . 505 220 52 . . . . . . . Highest-Rated Ally 159 | . . . 31 . . . . . . . 159 39 31 . . . . . . . Total Orders . | . . . . . . . . . . . . . . . . . . . . . Ally Attacks 166 | . . . 12 . . . . . . . 107 42 5 . . . . . . . Total Damage 3423 | . . . 188 . . . . . . . 2340 789 106 . . . . . . . Kills 22 | . . . 5 . . . . . . . 12 5 . . . . . . . . Allies Corrupted . | . . . . . . . . . . . . . . . . . . . . . Allies Melted 2 | . . . . . . . . . . . 1 . . . . . . 1 . . Intel | -11 -10 -9 -9 -8 -7 -7 -7 -7 -6 -6 -6 -6 -6 -6 -5 -5 -5 -5 -4 -4 ------- Run | Yrd Mat Mat Min Mat Fac Low Low Dat Pro Fac Ext Cet Arc Hub Fac Upp Upp War Pro Fac Robot Analysis Total 4 | . 2 . . 2 . . . . . . . . . . . . . . . . Derelict Logs Recovered 9 | . . . 1 . . 1 1 . 2 . . . . . . 3 1 . . . Drone Launches . | . . . . . . . . . . . . . . . . . . . . . Drone Recoveries . | . . . . . . . . . . . . . . . . . . . . . Decoded 0b10 Intel 26 | . . . . . . . . . . . . . . . . . . . . 26 Traps 4 | . . . . . . . . . . . . . . . . . . . . 4 Emergency Access 3 | . . . . . . . . . . . . . . . . . . . . 3 Items 19 | . . . . . . . . . . . . . . . . . . . . 19 Exploration | -11 -10 -9 -9 -8 -7 -7 -7 -7 -6 -6 -6 -6 -6 -6 -5 -5 -5 -5 -4 -4 ------------- Run | Yrd Mat Mat Min Mat Fac Low Low Dat Pro Fac Ext Cet Arc Hub Fac Upp Upp War Pro Fac Turns Passed 30146 | 214 1580 5397 1583 2867 1844 1425 500 131 528 1231 2053 388 485 2140 3048 939 481 1245 944 1123 Spaces Moved 12763 | 41 858 1985 622 834 866 740 284 78 276 721 1127 181 182 874 1013 457 266 579 383 396 Core 2 | . . . . . . . . . . . . . . . 2 . . . . . Treads 9398 | . . 1781 622 834 866 740 284 78 276 173 . 54 179 874 556 457 266 579 383 396 Legs 655 | 41 159 . . . . . . . . . . . . . 455 . . . . . Wheels 2708 | . 699 204 . . . . . . . 548 1127 127 3 . . . . . . . Hover . | . . . . . . . . . . . . . . . . . . . . . Flight . | . . . . . . . . . . . . . . . . . . . . . Fastest Speed 100 | 120 100 155 240 240 160 160 160 160 160 130 130 130 130 160 160 165 165 162 165 145 Average Speed 182 | 120 128 231 240 242 160 160 160 160 165 138 130 158 181 160 211 178 165 179 222 174 Slowest Speed 1650 | 120 155 240 240 480 240 240 160 160 240 167 130 240 240 160 1650 245 165 242 250 250 Overloaded Moves . | . . . . . . . . . . . . . . . . . . . . . Propulsion Burnouts . | . . . . . . . . . . . . . . . . . . . . . Robots Hopped . | . . . . . . . . . . . . . . . . . . . . . Cave-ins Triggered 1 | . . . . . . . . . . . . . . . . . . 1 . . Exploration Rate (%) 58 | 3 97 97 98 74 18 82 44 68 41 17 89 66 83 72 28 63 43 85 57 12 Regions Visited 20 Branch Regions 13 Pre-discovered Areas 5 | . 2 1 . . . . . 1 . . . . . . . 1 . . . . Known Exits Taken 6 | . . . 1 . 1 . . . 1 1 . . . 1 . . . . 1 . Unknown Exits Taken 14 | 1 1 1 . 1 . 1 1 1 . . 1 1 1 . 1 1 1 1 . . Scrap Searched 10 | . . . 2 . . 3 . . 1 . . . . . . . 2 . 2 . Spaces Dug 58 | . 1 . . 8 20 . . . . . . . . 7 5 . . 4 . 13 Terrain Destroyed 295 | . 8 . . 53 22 . . . 3 . . . . 8 59 20 1 19 3 99 Melee 18 | . . . . 8 . . . . . . . . . 7 3 . . . . . Projectile 183 | . 1 . . . 2 . . . 3 . . . . 1 53 20 1 19 3 80 AOE 91 | . 7 . . 45 20 . . . . . . . . . . . . . . 19 Terrain Rammed . | . . . . . . . . . . . . . . . . . . . . . Walls Destroyed . | . . . . . . . . . . . . . . . . . . . . . Machines Disabled . | . . . . . . . . . . . . . . . . . . . . . Actions | -11 -10 -9 -9 -8 -7 -7 -7 -7 -6 -6 -6 -6 -6 -6 -5 -5 -5 -5 -4 -4 --------- Run | Yrd Mat Mat Min Mat Fac Low Low Dat Pro Fac Ext Cet Arc Hub Fac Upp Upp War Pro Fac Total 17667 | 171 1186 2581 668 1423 1163 930 309 85 320 894 1601 245 297 1502 1660 516 295 715 430 676 Wait 3207 | 112 205 415 21 418 135 131 11 . 13 94 266 18 77 548 458 26 19 50 13 177 Move 12743 | 40 857 1984 621 833 865 739 283 77 275 720 1126 180 181 873 1012 456 265 578 382 396 Hop . | . . . . . . . . . . . . . . . . . . . . . Pick Up 161 | 1 17 23 2 13 22 10 3 . 4 9 6 5 5 3 21 1 4 4 3 5 Fast Attach 102 | 1 5 9 . 8 8 3 . 3 . 5 8 5 2 3 12 3 . 11 2 14 Attach 109 | . 8 5 . 10 15 8 . 1 5 3 2 5 1 4 19 4 1 5 3 10 Detach 26 | . 3 . . . 3 1 . . . 3 . 1 . 1 3 1 . 3 . 7 Swap 119 | . 8 12 2 24 16 1 . . 2 4 4 2 . 11 17 1 1 11 1 2 Drop 158 | . 3 33 2 13 20 6 . 4 . 13 11 7 6 4 11 . . 19 3 3 Fire 897 | 17 80 98 20 93 77 31 12 . 21 35 66 22 25 48 104 24 5 34 23 62 Melee 21 | . . . . 11 . . . . . . . . . 7 3 . . . . . Ram . | . . . . . . . . . . . . . . . . . . . . . Kick . | . . . . . . . . . . . . . . . . . . . . . Crush 4 | . . 2 . . 2 . . . . . . . . . . . . . . . Escape Stasis 40 | . . . . . . . . . . 8 32 . . . . . . . . . Rewire 80 | . . . . . . . . . . . 80 . . . . . . . . . Trap . | . . . . . . . . . . . . . . . . . . . . . Miscellaneous . | . . . . . . . . . . . . . . . . . . . . . Route ------- -11/Scrapyard -10/Materials (discovered 5 exits: *Mat x3 / [*Min x2]) -9/Materials (discovered 4 exits: *Mat x3 / [*Min]) -9/Mines (discovered 2 exits: *Mat x2) -8/Materials (discovered 2 exits: *Fac x2) -7/Factory (discovered 3 exits: [*Sto] / *Low / Gar) -7/Lower Caves -7/Lower Caves (discovered 2 exits: *Fac / *Dat) -7/Data Miner -6/Proximity Caves -6/Factory (discovered 3 exits: Fac / *Ext x2) -6/Extension (discovered 2 exits: *Fac / *Cet) -6/Cetus (discovered 2 exits: *Fac / *Arc) -6/Archives (discovered 3 exits: *Fac / *Hub x2) -6/Hub_04(d) (discovered 2 exits: *Fac x2) -5/Factory (discovered 2 exits: *Fac / [*Upp]) -5/Upper Caves -5/Upper Caves -5/Warlord -4/Proximity Caves -4/Factory History --------- Turn | Location | Event 10 | -11/Scrapyard | Discovered new exit (range 3) 215 | -11/Scrapyard | Entered Materials 302 | -10/Materials | Build established: Mutant 438 | -10/Materials | Discovered new exit (range 16) 574 | -10/Materials | Lost 3 parts (1n2w) 800 | -10/Materials | Discovered new exit (range 16) 929 | -10/Materials | Discovered new exit (range 13) 1040 | -10/Materials | Discovered new exit (range 16) 1216 | -10/Materials | Central database locked down 1269 | -10/Materials | Discovered new exit (range 6) 1795 | -10/Materials | Entered another Materials area 1795 | -9/Materials | Evolved 2 slots: Utility x1, Weapon x1 2097 | -9/Materials | Build established: Tank 2538 | -9/Materials | Build established: Scavenger-Tank 3365 | -9/Materials | Repaired Hvy. Assault Rifle 3652 | -9/Materials | Build established: Tank 3694 | -9/Materials | Discovered new exit (range 5) 4160 | -9/Materials | Repaired Hvy. Assault Rifle 4523 | -9/Materials | Discovered new exit (range 10) 4846 | -9/Materials | Discovered new exit (range 5) 5598 | -9/Materials | Build established: Scavenger-Tank 6069 | -9/Materials | Discovered new exit (range 11) 7192 | -9/Materials | Entered Mines 7193 | -9/Mines | Assembled infested the area 7198 | -9/Mines | Assisted by a Guerilla fighting off Assembled 7366 | -9/Mines | Received a Mining Laser from a helpful Derelict 7559 | -9/Mines | Identified exit to Materials 8010 | -9/Mines | A weapon hastily lodged in a ceiling crevice suddenly fell to the ground 8206 | -9/Mines | Discovered exit to Materials (range 10) 8775 | -9/Mines | Entered Materials 8775 | -8/Materials | Evolved 2 slots: Utility x1, Weapon x1 8968 | -8/Materials | Garrison activated, responded to threat 9713 | -8/Materials | Discovered new exit (range 15) 10407 | -8/Materials | Lost 3 parts (1n1u1w) 10794 | -8/Materials | Repaired Hvy. Assault Rifle 10931 | -8/Materials | Repaired Broken Gauss Rifle 11250 | -8/Materials | Discovered new exit (range 16) 11575 | -8/Materials | First assault squad dispatched 11642 | -8/Materials | Entered Factory 11642 | -7/Factory | Evolved 2 slots: Propulsion x2 11884 | -7/Factory | Discovered new exit (range 16) 12102 | -7/Factory | Discovered new exit (range 12) 12191 | -7/Factory | Identified exit to Lower Caves 12194 | -7/Factory | Lost 4 parts (2n1u1w) 12300 | -7/Factory | Identified exit to Garrison 12597 | -7/Factory | Build established: Scavenger-Gunner 13486 | -7/Factory | Entered Lower Caves 13605 | -7/Lower Caves | Attracted the attention of an 0b10 checkpoint 13887 | -7/Lower Caves | Encountered a Warlord checkpoint 13944 | -7/Lower Caves | Learned 4 Factory zone layouts 14206 | -7/Lower Caves | Spotted B-75 Beast 14360 | -7/Lower Caves | Destroyed B-75 Beast 14389 | -7/Lower Caves | Lost 4 parts (1n1u2w) 14660 | -7/Lower Caves | Build established: Scavenger-Tank 14787 | -7/Lower Caves | System corruption reached 10% 14833 | -7/Lower Caves | Discovered new exit (range 5) 14911 | -7/Lower Caves | Entered another Lower Caves area 14929 | -7/Lower Caves | Discovered new exit (range 5) 15055 | -7/Lower Caves | Encountered a Warlord checkpoint 15151 | -7/Lower Caves | Discovered new exit (range 5) 15276 | -7/Lower Caves | Learned location of 1 exit from Factory 15411 | -7/Lower Caves | Entered Data Miner 15411 | -7/Data Miner | Discovered new exit (range 6) 15444 | -7/Data Miner | Met Data Miner 15476 | -7/Data Miner | Learned location of Section 7 (-2) 15476 | -7/Data Miner | Acquired the access code to Warlord's prototype stash 15500 | -7/Data Miner | Received God Mode back door access code from Data Miner 15542 | -7/Data Miner | Entered Proximity Caves 15728 | -6/Proximity Caves | Attracted the attention of an 0b10 checkpoint 15762 | -6/Proximity Caves | Lost 3 parts (2n1w) 15781 | -6/Proximity Caves | Identified exit to Factory 15862 | -6/Proximity Caves | Learned 8 Factory zone layouts 16070 | -6/Proximity Caves | Entered Factory 16070 | -6/Factory | Evolved 2 slots: Utility x1, Weapon x1 16071 | -6/Factory | Identified exit to Extension 16072 | -6/Factory | Identified exit to Factory 16821 | -6/Factory | Fabricated Autogun (x2) 17301 | -6/Factory | Entered Extension 17974 | -6/Extension | Repaired Fission Core 17997 | -6/Extension | Rescued a captive Derelict 17997 | -6/Extension | Rescued a captive Derelict 18012 | -6/Extension | Rescued a captive Derelict 18014 | -6/Extension | Rescued a captive Derelict 18033 | -6/Extension | Build established: Scavenger-Skirmisher 18115 | -6/Extension | Rescued a captive Derelict 18142 | -6/Extension | Rescued A7 18164 | -6/Extension | Rescued a captive Derelict 18517 | -6/Extension | Spotted B-75 Beast 18522 | -6/Extension | Extracted ID and sensor layout for unrecognized location from A7's data core 18534 | -6/Extension | Spotted B-75 Beast 18545 | -6/Extension | Allies destroyed B-75 Beast 18555 | -6/Extension | Allies destroyed B-75 Beast 18576 | -6/Extension | Disrupted transfer network 18581 | -6/Extension | Lost 6 allies 18954 | -6/Extension | Rescued a captive Derelict 19085 | -6/Extension | Rescued a captive Derelict 19086 | -6/Extension | Rescued a captive Derelict 19278 | -6/Extension | Discovered exit to Factory (range 10) 19280 | -6/Extension | Discovered new exit (range 6) 19354 | -6/Extension | Entered Cetus 19354 | -6/Cetus | Accompanied by 8 allies 19374 | -6/Cetus | Spotted Cetus Guard 19374 | -6/Cetus | Spotted Cetus Guard 19378 | -6/Cetus | Spotted Cetus Guard 19380 | -6/Cetus | Spotted Cetus Guard 19392 | -6/Cetus | Allies destroyed Cetus Guard 19398 | -6/Cetus | Allies destroyed Cetus Guard 19401 | -6/Cetus | Destroyed Cetus Guard 19401 | -6/Cetus | Allies destroyed Cetus Guard 19422 | -6/Cetus | Lost 4 parts (4w) 19432 | -6/Cetus | Lost 5 allies 19536 | -6/Cetus | Discovered new exit (range 16) 19566 | -6/Cetus | Spotted Cetus Guard 19566 | -6/Cetus | Spotted Cetus Guard 19569 | -6/Cetus | Spotted Cetus Guard 19571 | -6/Cetus | Spotted Cetus Guard 19582 | -6/Cetus | Destroyed Cetus Guard 19590 | -6/Cetus | Destroyed Cetus Guard 19593 | -6/Cetus | Allies destroyed Cetus Guard 19599 | -6/Cetus | Destroyed Cetus Guard 19622 | -6/Cetus | Discovered exit to Factory (range 16) 19633 | -6/Cetus | Met Revision 17 19685 | -6/Cetus | Build established: Scavenger-Gunner 19742 | -6/Cetus | Entered Archives 19742 | -6/Archives | Accompanied by 2 allies 19857 | -6/Archives | Discovered new exit (range 14) 19910 | -6/Archives | Discovered exit to Factory (range 15) 19930 | -6/Archives | Discovered new exit (range 15) 19956 | -6/Archives | Unable to access archive contents 19972 | -6/Archives | Unable to access archive contents 19988 | -6/Archives | Unable to access archive contents 20004 | -6/Archives | Unable to access archive contents 20227 | -6/Archives | Entered Hub_04(d) 20526 | -6/Hub_04(d) | Build established: Scavenger-Skirmisher 20931 | -6/Hub_04(d) | Discovered exit to Factory (range 16) 21425 | -6/Hub_04(d) | Discovered exit to Factory (range 17) 21575 | -6/Hub_04(d) | Garrison activated, responded to threat 22227 | -6/Hub_04(d) | Network Hub disabled 22231 | -6/Hub_04(d) | Network Hub disabled 22327 | -6/Hub_04(d) | First assault squad dispatched 22367 | -6/Hub_04(d) | Entered Factory 22367 | -5/Factory | Evolved 2 slots: Utility x1, Weapon x1 22674 | -5/Factory | Build established: Scavenger-Executioner 22853 | -5/Factory | System corruption reached 10% 22883 | -5/Factory | Lost 3 parts (2u1w) 23269 | -5/Factory | Destroyed 9 combat bots 23644 | -5/Factory | Destroyed 8 combat bots 23867 | -5/Factory | First assault squad dispatched 24144 | -5/Factory | Lost 9 parts (1p1n4u3w) 24343 | -5/Factory | Discovered new exit (range 14) 24574 | -5/Factory | Identified exit to Factory 24884 | -5/Factory | System corruption reached 30% 25282 | -5/Factory | Discovered new exit (range 5) 25415 | -5/Factory | Entered Upper Caves 25566 | -5/Upper Caves | Encountered a Warlord checkpoint 25594 | -5/Upper Caves | Learned Factory interactive machine intel 25645 | -5/Upper Caves | Attracted the attention of an 0b10 checkpoint 25652 | -5/Upper Caves | Spotted B-75 Beast 25686 | -5/Upper Caves | Destroyed B-75 Beast 25713 | -5/Upper Caves | Lost 4 parts (1p2u1w) 26317 | -5/Upper Caves | Learned 4 Factory zone layouts 26327 | -5/Upper Caves | Learned location of Armory (-3) 26331 | -5/Upper Caves | Discovered new exit (range 14) 26354 | -5/Upper Caves | Entered another Upper Caves area 26443 | -5/Upper Caves | Attracted the attention of an 0b10 checkpoint 26715 | -5/Upper Caves | Learned Factory security intel 26809 | -5/Upper Caves | Discovered new exit (range 8) 26835 | -5/Upper Caves | Entered Warlord 26892 | -5/Warlord | System corruption cleaned by Quarantine Array 26938 | -5/Warlord | Warlord's base attacked by MAIN.C 27091 | -5/Warlord | Met Warlord 27112 | -5/Warlord | Opened Warlord's prototype stash 27119 | -5/Warlord | Found Prototype Processor 27119 | -5/Warlord | Identified Exp. Armor Integrity Analyzer 27132 | -5/Warlord | Found Prototype Device 27132 | -5/Warlord | Identified Exp. Phase Shifter 27140 | -5/Warlord | Found Prototype Hackware 27215 | -5/Warlord | Found Prototype Device 27215 | -5/Warlord | Identified Minesniffer Drone Bay 27288 | -5/Warlord | Warlord forces counterattacked 27315 | -5/Warlord | Found Prototype Energy Gun 27406 | -5/Warlord | Found Prototype Special Weapon 27406 | -5/Warlord | Identified RU-N14's Throwing Claymores v3 27613 | -5/Warlord | Warlord base infiltrated, sounded retreat 27639 | -5/Warlord | Spotted Executioner 27641 | -5/Warlord | Spotted Striker 27652 | -5/Warlord | Destroyed Executioner 27708 | -5/Warlord | Lost 6 allies 27726 | -5/Warlord | Crushed by falling debris 27726 | -5/Warlord | Core integrity fell below 50% 27819 | -5/Warlord | Spotted Striker 27827 | -5/Warlord | Destroyed Striker 27878 | -5/Warlord | Lost 6 allies 27927 | -5/Warlord | Spotted Striker 27935 | -5/Warlord | Destroyed Striker 28068 | -5/Warlord | Discovered new exit (range 10) 28080 | -5/Warlord | Entered Proximity Caves 28270 | -4/Proximity Caves | Spotted B-86 Titan 28343 | -4/Proximity Caves | Identified Plasma Storm 28351 | -4/Proximity Caves | Lost 4 parts (2n2w) 28367 | -4/Proximity Caves | Destroyed B-86 Titan 28397 | -4/Proximity Caves | Lost 3 parts (2n1u) 28994 | -4/Proximity Caves | Discovered exit to Factory (range 14) 29024 | -4/Proximity Caves | Entered Factory 29024 | -4/Factory | Evolved 2 slots: Power x1, Utility x1 29027 | -4/Factory | Loaded intel: 52 interactive machine locations 29229 | -4/Factory | Fabricated Combat Drone Bay (x1) 29437 | -4/Factory | Identified System Mapper 29604 | -4/Factory | Build established: Executioner 29803 | -4/Factory | System corruption reached 10% 30056 | -4/Factory | First assault squad dispatched 30095 | -4/Factory | Core integrity fell below 50% 30144 | -4/Factory | Core integrity fell below 20% 30147 | -4/Factory | Destroyed by G-67 Veteran with Plasma Rifle Last Messages --------------- 30139_ Penetrated by Slug. 30139_ Broken Lrn. Phase Cannon destroyed. 30140_ Overheating: Matter decay (-49). 30140_ ALERT: Cargo convoy en route, clear transfer corridor. 30140_ U-05 Engineer builds a Wall. 30140_ Lrn. Phase Cannon destroyed. 30140_ Lgt. Antimatter Reactor destroyed. 30141_ Antimatter Reactor broken. 30141_ Overheating: Short circuit. 30141_ Imp. Force Field destroyed. 30141_ Broken Antimatter Reactor destroyed. 30141_ Hcp. Storage Unit destroyed. 30142_ Lrn. Phase Cannon destroyed. 30142_ Slug penetrates Wall. 30143_ Machine Analyzer severed. 30144_ K-01 Serf collects debris. 30145_ Wall collapses. 30145_ U-05 Engineer builds a Wall. 30145_ Penetrated by Slug. 30146_ Overheating: Energy bleed (-22). Map ----- +----------------------------------------------------+ | " """ #?????????# ==+ ??????????????????"?"?? | | #?????????# [%# ?"""?"""???????????"?"?? | | " """ #?????????# !# ?"""?"""???????????"?"?? | | " """ #?"""?"""?# # ?"""?"""???????????"?"?? | | " """ #?"""?"""?# # ????????????????????"?"?? | | #?"""?"""?# # ????????????????????"?"?? | | " """ #??""??"" # ###???????????????????????? | | " """ #??"" ?"" # # #???????????????????????? | | " """ #??? ? # * ###########???????????????? | | #??? ??# !%# +???????????????? | | #####+######+##### % =*#= #???????????????? | | % !# #???????????????? | | |%# #???????????????? | | % !# #?*?????????????? | | % % %# = #?*?????????????? | | % %% * #? #??????"""??????? | | #####+############ %#? #??????"""??????? | | #???## % ###+#######??????"""??????? | | #????# % #??????????????????? | | """"""""" #????# #???????????+??????? | | #????# % #??????????????????? | | #????# | ####?????????[!????? | | [= #????#! R=%! ######"#"#?????????? | | [= #?###########%[ # "???!????? | | == #?# " [= #|== # #????????? | | #?# " =! #@[!! # #????????? | | #?# "** = !=l**% ; u h +????????? | | """"""""" #?# !#|[ # h #????????? | | #?# # u # ????"""??? | | #############?# # # ????"""??? | | ??????????????# # [!# ??????R"??? | | ??????????????# [ # g%#""+"####?????"""??? | | ??????????????########### g! ???????""???? | | ????????????????????????# u #???????????? | | ????????????????????????# gi k #???????????? | | ????????????????????????# !%= ????????????? | | ????????????????????????# u!|=| ????????????? | | ????????????????????????###;;###%[ ????????????? | | ??????????????????????????? # ????????????? | | ??????????????????????????? ??? ??????????????? | | ??????????????????????????? ?????????????????????? | | ?????????????????????????????????????????????????? | | ?????????????????????????????????????????????????? | | ?????????????????????????????????????????????????? | | ?????????????????????????????????????????????????? | | ?????????????????????????????????????????????????? | | ?????????????????????????????????????????????????? | | ?????????????????????????????????????????""G""???? | | ?????????????????????????????????????T????"?"????? | | ?????????????????????????????????????????????????? | +----------------------------------------------------+ Best States ------------- Heat Dissipation 150 Energy Generation 37 Energy Capacity 550 Matter Stores 300 Matter Capacity 300 Sight Range 16 Robot Scan Range 16 Terrain Scan Density 10 Jamming Range 12 Base Temperature (-) 200 Armor Coverage 450 Resistance: KI 30 Weapon Shielding 66 Weapon Cycling 15 Evasion (%) 55 Core Analysis 6 Armor Integrity Analysis 50 Recoil Reduction 4 Matter Filtering 30 Kinecelleration 30 Salvage Targeting 2 Item Schematics ----------------- Hardlight Generator | -9/Materials | Scanalyzed Autogun | -9/Materials | Scanalyzed Plasma Cutter | -9/Materials | Scanalyzed Gauss Rifle | -8/Materials | Scanalyzed Combat Drone Bay | -7/Data Miner | Free Lgt. Regenerative Plating | -7/Data Miner | Free Cld. Cesium-ion Thruster | -7/Data Miner | Free Thermal Defense Suite | -7/Data Miner | Free Ion Burst Cannon | -7/Data Miner | Free Nuclear Pulse Array | -7/Data Miner | Free Adv. Trap Extractor | -7/Data Miner | Free Disruptor Cannon | -7/Data Miner | Free Imp. Arc Projector | -7/Data Miner | Free Myomer Leg | -7/Data Miner | Free Transmission Jammer | -6/Extension | Hacked Robot Schematics ------------------ R-10 Processor | -7/Data Miner | Free D-53 Grenadier | -7/Data Miner | Free E-15 Imp | -7/Data Miner | Free Y-54 Guardian | -7/Data Miner | Free S-27 Virus | -7/Data Miner | Free Fabricated ------------ Autogun | x2 | -6/Factory Combat Drone Bay | x1 | -4/Factory Alien Tech Used ----------------- None Achievements -------------- Collateral Damage Challenges ------------ None Game ------ Seed BraceControlStick Manual? 0 Play Time 03:07:40 Cumulative 201.9 hours Start 2024.08.14 @ 06:27:20 End 2024.08.15 @ 11:08:09 Sessions 2 Manual Loads 0 Difficulty Rogue Special Mode None Game No. 131 Rogue 131 Adventurer 0 Explorer 0 Win Type - Total 2 Types 1/0/0/1/0/0/0/0/0 Lore% 67 Gallery% 61 Achievement% 58 Wizard Run 0 Options --------- Layout 0 ASCII 0 Keyboard 0 Movement Mouse Keybinds 0 Fullscreen 1 Font 18/SmallcapsGlow Map View 76x50 Zoom Use 0% Tactical HUD 1 Map Filters NONE Filters NONE Steam 1 RUN: 23973340-156f-42b9-92fa-88b91f867da8